bitfinex-derivatives/quotes_ETHF0:USTF0_20250116
["timestamp","ask_amount","ask_price","bid_price","bid_amount"]
[1737039672482,4.6987,3277.0,3276.7,0.61051]
[1737039672872,4.6987,3277.0,3276.3,3.2078]
[1737039673076,0.61057,3276.5,3276.4,1.5]
[1737039674279,0.61059,3276.3,3276.2,1.5]
[1737039674481,3.81839,3276.3,3276.2,1.5]
[1737039675281,3.2078,3276.3,3276.2,2.11061]
[1737039675676,3.2078,3277.1,3276.2,5.31841]
[1737039675884,3.2078,3277.1,3276.3,4.9263]
[1737039676086,0.61038,3277.5,3277.0,0.61046]
[1737039676282,5.75357836,3277.6,3277.1,1.5]
[1737039676787,5.75357836,3277.6,3277.5,0.61037]
[1737039676983,3.2078,3278.3,3277.5,3.2078]
[1737039677196,0.61034,3277.7,3277.5,3.2078]
[1737039677397,0.61039,3277.4,3277.1,2.11044]
[1737039677688,3.2078,3278.3,3277.3,3.2078]
[1737039678481,1.52552,3278.4,3277.3,3.2078]
[1737039678482,3.2078,3277.9,3277.4,1.5]
[1737039678684,3.2078,3278.3,3277.4,1.5]
[1737039678880,0.61029,3278.0,3277.6,0.61034]
[1737039679079,0.61034,3277.7,3277.4,1.5]
[1737039679280,3.2078,3277.9,3277.4,1.5]
[1737039679492,3.81811,3277.9,3277.6,0.61035]
[1737039679682,0.61033,3277.8,3277.5,0.61036]
[1737039679884,3.2078,3278.3,3277.4,1.5]
[1737039680190,3.2078,3278.8,3277.9,3.2078]
[1737039680380,0.61016,3278.7,3278.0,0.61028]
[1737039680582,0.61016,3278.7,3278.4,0.61019]
[1737039680789,4.59016185,3279.1,3278.5,1.5]
[1737039681581,4.59016185,3279.1,3278.0,12.822]
[1737039681582,0.61022,3278.3,3278.0,12.822]
[1737039681781,5.02039225,3279.0,3278.3,1.5]
[1737039681782,0.6102,3278.4,3278.3,1.5]
[1737039682394,3.2078,3278.5,3278.3,1.5]
[1737039682689,0.6102,3278.4,3278.3,1.5]
[1737039682991,3.2078,3278.6,3278.0,12.822]
[1737039683293,3.81806,3278.1,3278.0,12.822]
[1737039683493,3.81806,3278.1,3278.0,14.322]
[1737039683791,3.81806,3278.1,3278.0,12.822]
[1737039683987,1.52577,3277.9,3276.6,3.81833]
[1737039684191,3.2078,3276.8,3276.7,1.5]
[1737039684385,0.61052,3276.7,3276.6,1.5]
[1737039684590,0.61064,3276.1,3275.9,12.821]
[1737039684792,3.81845,3276.0,3275.9,12.821]
[1737039684989,3.2078,3276.4,3275.9,14.321]
[1737039685187,3.2078,3276.2,3275.9,14.321]
[1737039685387,3.2078,3276.3,3275.9,14.321]
[1737039685695,3.2078,3276.4,3275.9,14.321]
[1737039685898,0.61065,3276.0,3275.9,14.321]
[1737039686194,3.81845,3276.0,3275.9,14.321]
[1737039686386,3.2078,3276.0,3274.8,4.8822]
[1737039686591,3.2078,3275.8,3274.9,42.3]
[1737039686797,3.36597518,3276.0,3274.4,12.823]
[1737039686798,3.2078,3275.3,3275.0,1.5]
[1737039687094,0.61082,3275.1,3275.0,1.5]
[1737039687389,0.61087,3274.9,3274.4,12.823]
[1737039687585,3.2078,3274.8,3274.5,1.5]
[1737039687788,3.2078,3275.3,3274.6,1.5]
[1737039687994,0.61084,3275.0,3274.6,2.1109]
[1737039688296,3.2078,3275.3,3274.6,2.1109]
[1737039688297,3.2078,3275.3,3274.6,1.5]
[1737039688795,3.2078,3275.8,3275.2,3.2078]
[1737039688991,3.2078,3275.8,3275.7,0.61071]
[1737039689192,7.79796185,3276.2,3276.1,0.61063]
[1737039689391,4.59016185,3276.2,3276.1,0.61063]
[1737039689589,3.2078,3276.8,3276.1,3.2078]
[1737039689893,0.61051,3276.8,3276.1,3.2078]
[1737039690094,3.2078,3277.0,3276.1,3.2078]
[1737039690294,3.2078,3276.6,3275.5,3.2078]
[1737039690494,0.61056,3276.5,3276.2,0.6106]
[1737039690800,3.2078,3276.6,3275.9,3.2078]
[1737039691097,3.2078,3276.6,3276.0,0.61064]
[1737039691098,0.6106,3276.3,3276.0,0.61064]
[1737039691287,0.61066,3276.0,3275.7,0.6107]
[1737039691492,0.61066,3276.0,3274.9,1.52711]
[1737039691493,3.2078,3275.8,3275.1,3.2078]
[1737039691694,0.61087,3274.8,3274.7,4.75803942]
[1737039691897,3.2078,3274.8,3274.7,5.36892942]
[1737039692096,3.2078,3274.9,3274.7,4.75803942]
[1737039692492,3.2078,3274.9,3274.8,0.61087]
[1737039692697,3.2078,3275.3,3275.2,0.6108]
[1737039693403,3.2078,3275.3,3274.6,1.5]
[1737039693704,3.2078,3274.9,3274.6,1.5]
[1737039693892,3.2078,3274.9,3273.8,4.6116]
[1737039694097,3.2078,3274.3,3273.4,4.75803942]
[1737039694309,3.81878,3274.3,3274.0,0.61101]
[1737039694503,3.2078,3274.3,3273.9,1.5]
[1737039694691,3.2078,3274.7,3273.9,1.5]
[1737039694896,3.2078,3274.3,3274.0,1.5]
[1737039695097,3.81877,3274.3,3274.1,0.61099]
[1737039695298,3.2078,3274.3,3274.1,0.61099]
[1737039695496,3.81877,3274.3,3274.0,2.11101]
[1737039695798,3.81877,3274.3,3274.0,1.5]
[1737039696000,0.611,3274.1,3274.0,1.5]
[1737039696205,3.2078,3274.3,3273.2,12.825]
[1737039696206,0.61107,3273.8,3273.2,12.825]
[1737039696504,3.2078,3273.8,3273.2,53.625]
[1737039696705,3.2078,3273.8,3273.7,0.61108]
[1737039696902,3.2078,3273.8,3273.3,1.501]
[1737039697097,3.2078,3273.4,3273.3,0.61115]
[1737039697403,3.2078,3273.4,3273.3,2.11215]
[1737039698098,3.2078,3273.8,3273.7,0.61108]
[1737039698302,3.2078,3274.2,3273.3,1.501]
[1737039698504,3.2078,3274.2,3274.1,0.611]
[1737039698897,3.2078,3274.4,3273.8,1.52764]
[1737039699201,4.59016185,3275.3,3274.7,0.61089]
[1737039699402,4.59016185,3275.3,3274.0,3.2078]
[1737039699403,3.2078,3275.1,3274.8,1.501]
[1737039699702,0.61088,3274.8,3274.6,0.6109]
[1737039699908,3.2078,3274.7,3274.5,1.501]
[1737039700203,3.2078,3274.7,3274.6,1.501]
[1737039700504,3.81869,3274.7,3274.6,1.501]
[1737039701207,0.611,3274.1,3274.0,1.501]
[1737039701403,3.8188,3274.1,3274.0,1.501]
[1737039702705,3.2078,3274.1,3274.0,1.501]
[1737039703207,3.2078,3274.1,3274.0,2.11202]
[1737039703406,3.2078,3274.1,3274.0,1.501]
[1737039703710,3.2078,3274.1,3273.2,1.501]
[1737039703904,3.2078,3273.7,3273.4,0.61113]
[1737039704105,3.2078,3273.7,3273.2,1.501]
[1737039704401,14.2854,3274.6,3272.2,0.61135]
[1737039704402,0.61124,3272.9,3272.2,0.61135]
[1737039704601,3.81902,3273.0,3272.3,0.61132]
[1737039704907,12.50095943,3273.6,3272.3,0.61134]
[1737039704908,0.61118,3273.2,3272.3,0.61134]
[1737039705103,3.2078,3273.4,3272.2,3.2078]
[1737039705308,3.2078,3272.9,3272.3,1.501]
[1737039705607,3.2078,3272.9,3272.6,0.61127]
[1737039705804,3.2078,3272.9,3272.5,0.61129]
[1737039706113,3.2078,3272.9,3272.6,1.501]
[1737039706307,3.2078,3272.9,3272.7,1.501]
[1737039706605,4.553,3273.6,3273.5,0.61112]
[1737039706808,0.6111,3273.7,3272.8,6.3747]
[1737039707011,3.2078,3274.0,3272.8,6.3747]
[1737039707207,3.2078,3273.6,3273.5,40.8]
[1737039707512,3.2078,3273.6,3272.5,4.4843]
[1737039707808,3.30403385,3274.4,3272.9,0.61121]
[1737039707809,3.2078,3273.2,3272.9,0.61121]
[1737039708011,3.2078,3273.2,3272.6,1.501]
[1737039708814,3.2078,3273.6,3273.5,0.61112]
[1737039709002,3.81875,3274.4,3274.1,0.61099]
[1737039709205,3.2078,3274.4,3274.3,0.61097]
[1737039709507,4.59016185,3275.8,3274.1,3.2078]
[1737039709508,3.2078,3274.8,3274.1,3.2078]
[1737039709709,3.2078,3274.8,3274.7,0.61089]
[1737039710807,3.2078,3274.8,3274.5,1.501]
[1737039711011,3.2078,3275.2,3274.6,1.501]
[1737039711215,3.2078,3275.2,3274.7,1.501]
[1737039711411,3.2078,3275.2,3274.2,3.2078]
[1737039711412,3.2078,3275.2,3274.8,2.11187]
[1737039711604,3.2078,3275.2,3274.8,1.501]
[1737039711809,0.61085,3274.9,3274.8,1.501]
[1737039712212,0.61093,3274.5,3274.4,1.501]
[1737039712408,3.81873,3274.5,3274.4,1.501]
[1737039712607,3.2078,3274.5,3274.4,1.501]
[1737039712805,3.2078,3274.5,3274.4,2.11195]
[1737039713419,3.2078,3274.5,3274.4,1.501]
[1737039713912,3.2078,3274.5,3273.3,4.8934]
[1737039714115,3.2078,3273.9,3273.5,0.61111]
[1737039714509,3.2078,3273.9,3273.4,2.11213]
[1737039714711,3.2078,3273.5,3273.4,1.501]
[1737039715116,3.81892,3273.5,3273.4,1.501]
[1737039716119,3.2078,3273.5,3273.4,2.11213]
[1737039716321,3.2078,3273.9,3273.4,2.11213]
[1737039716520,3.2078,3273.5,3273.4,1.501]
[1737039718224,3.2078,3273.5,3273.4,2.11213]
[1737039718420,3.2078,3273.5,3273.4,1.501]
[1737039718921,8.2078,3273.5,3272.4,12.833]
[1737039719115,3.2078,3272.6,3272.4,12.833]
[1737039719719,3.2078,3273.3,3272.4,12.833]
[1737039719920,3.2078,3272.8,3272.7,0.61127]
[1737039720518,9.633,3273.4,3272.4,12.833]
[1737039720519,3.2078,3273.1,3272.4,12.833]
[1737039720719,3.2078,3272.7,3272.4,12.833]
[1737039721121,3.81898,3273.2,3273.0,0.61121]
[1737039721319,3.2078,3273.2,3272.4,12.833]
[1737039721525,0.6112,3273.1,3272.5,0.6113]
[1737039721724,3.2078,3273.2,3272.5,1.52826]
[1737039722025,3.2078,3273.2,3272.4,14.36128]
[1737039722223,0.61122,3273.0,3272.8,0.61124]
[1737039722422,3.2078,3273.2,3272.7,0.61127]
[1737039722619,0.61128,3272.7,3272.5,0.6113]
[1737039722824,3.2078,3272.8,3271.8,3.2078]
[1737039723030,3.2078,3272.7,3272.5,0.61129]
[1737039723225,3.2078,3272.7,3272.0,1.52849]
[1737039723226,3.2078,3272.7,3272.6,0.61128]
[1737039723526,9.633,3273.4,3272.4,3.2078]
[1737039723726,3.2078,3274.0,3273.0,3.2078]
[1737039724032,2.28436214,3274.3,3274.2,0.61099]
[1737039724222,2.28436214,3274.3,3274.2,2.11199]
[1737039724927,4.59016185,3274.7,3274.2,2.11199]
[1737039724928,3.94342197,3274.7,3274.6,0.61091]
[1737039725126,6.90429403,3276.1,3274.6,3.2078]
[1737039725328,2.29089926,3276.1,3276.0,0.61065]
[1737039725525,2.29089926,3276.1,3276.0,1.501]
[1737039726226,2.29089926,3276.1,3276.0,10.31945]
[1737039726523,9.26e-06,3276.1,3276.0,10.31945]
[1737039727124,3.2078,3277.6,3276.0,9.7088]
[1737039727320,9.3565,3277.9,3277.5,0.61036]
[1737039727530,3.2078,3277.6,3276.7,40.8]
[1737039727722,3.2078,3277.6,3276.8,1.501]
[1737039727723,3.2078,3277.2,3276.8,1.501]
[1737039728230,0.61048,3276.9,3276.8,1.501]
[1737039728427,3.24474504,3277.1,3275.7,3.2078]
[1737039728624,3.2078,3276.6,3275.8,1.501]
[1737039728829,3.2078,3276.2,3275.4,4.75803942]
[1737039729024,1.52617,3277.0,3275.5,1.501]
[1737039729025,0.61072,3275.6,3275.5,1.501]
[1737039729231,0.61072,3275.7,3275.5,1.501]
[1737039729426,0.61072,3275.6,3275.5,1.501]
[1737039729627,3.2078,3275.8,3275.5,1.501]
[1737039729923,5.0,3275.8,3274.2,3.2078]
[1737039730229,0.61087,3274.8,3274.3,1.501]
[1737039730526,0.61095,3274.4,3274.3,1.501]
[1737039730921,3.2078,3274.5,3274.3,1.501]
[1737039731124,3.2078,3274.6,3274.3,1.501]
[1737039731327,0.61093,3274.5,3274.4,1.501]
[1737039731735,0.61093,3274.5,3274.1,4.75575902]
[1737039731736,0.61099,3274.2,3274.1,4.75575902]
[1737039731930,0.6111,3273.6,3273.4,1.501]
[1737039732230,0.6111,3273.6,3273.2,4.75765642]
[1737039732231,0.61115,3273.3,3273.2,4.75765642]
[1737039732433,0.61119,3273.1,3273.0,7.13648463]
[1737039732734,7.05202491,3273.1,3273.0,7.13648463]
[1737039732932,6.44083491,3273.1,3273.0,7.13648463]
[1737039733129,3.2078,3273.1,3273.0,7.13648463]
[1737039733630,3.2078,3273.1,3273.0,0.61121]
[1737039733829,3.2078,3273.1,3272.5,1.501]
[1737039733830,3.2078,3273.6,3272.5,4.7088]
[1737039734031,3.2078,3273.6,3272.5,3.2078]
[1737039734226,3.2078,3273.2,3272.6,1.501]
[1737039734427,3.2078,3273.2,3272.6,2.11227]
[1737039734622,3.2078,3273.2,3271.9,3.2078]
[1737039734833,3.2078,3272.8,3272.4,0.61132]
[1737039735033,3.2078,3272.8,3272.4,0.61131]
[1737039735331,3.81906,3272.8,3272.3,0.61134]
[1737039735536,3.2078,3272.8,3272.4,1.501]
[1737039735726,0.6113,3272.5,3272.4,1.501]
[1737039736127,0.61134,3272.4,3272.3,1.501]
[1737039736330,3.2078,3272.8,3272.3,1.501]
[1737039736828,3.2078,3272.8,3272.4,40.8]
[1737039737038,0.61134,3272.3,3272.2,1.501]
[1737039737338,0.61134,3272.3,3271.6,1.501]
[1737039737339,3.2078,3272.3,3271.6,1.501]
[1737039737631,3.81925,3271.7,3271.6,1.501]
[1737039738029,3.81925,3271.7,3271.3,40.8]
[1737039738030,3.2078,3271.7,3270.8,12.835]
[1737039738227,3.2078,3271.1,3270.8,12.835]
[1737039738538,3.2078,3271.1,3270.9,1.501]
[1737039738840,3.2078,3271.5,3270.9,1.501]
[1737039739038,3.2078,3271.5,3271.3,0.61152]
[1737039739238,3.2078,3271.5,3271.2,0.61153]
[1737039739438,3.2078,3272.1,3271.0,4.7088]
[1737039739933,0.6115,3271.5,3271.0,2.11258]
[1737039740140,3.2078,3271.7,3271.0,1.501]
[1737039740938,3.81926,3271.7,3271.1,0.61155]
[1737039741135,3.2078,3271.7,3271.0,1.501]
[1737039741535,3.81925,3271.7,3271.1,0.61156]
[1737039741728,3.2078,3271.7,3270.8,12.835]
[1737039741934,3.2078,3271.2,3270.8,12.835]
[1737039742138,0.61156,3271.1,3270.8,12.835]
[1737039742336,8.0703,3271.6,3270.8,12.835]
[1737039742640,8.0703,3271.6,3271.1,0.61155]
[1737039742838,8.0703,3271.6,3270.8,12.835]
[1737039743040,3.2078,3271.6,3270.8,16.0428]
[1737039743240,3.2078,3271.6,3271.5,0.61149]
[1737039743740,0.6115,3271.5,3270.9,0.6116]
[1737039743944,3.81928,3271.6,3270.8,16.0428]
[1737039744241,4.8625,3272.8,3270.8,16.0428]
[1737039744242,3.2078,3272.0,3271.2,3.2078]
[1737039744544,3.2078,3272.0,3271.9,0.61141]
[1737039744740,3.2078,3272.0,3271.8,1.502]
[1737039744940,0.61142,3271.9,3271.5,2.11348]
[1737039745242,3.81927,3271.6,3270.9,0.61159]
[1737039745438,3.2078,3271.6,3271.0,1.502]
[1737039745746,3.2078,3271.6,3271.5,0.61149]
[1737039745946,3.2078,3271.6,3271.5,40.8]
[1737039746248,3.2078,3271.6,3271.4,0.6115]
[1737039746440,3.2078,3271.6,3271.5,0.61149]
[1737039746636,3.2078,3271.6,3271.0,1.502]
[1737039746637,3.2078,3272.0,3271.1,40.8]
[1737039746834,3.2078,3272.4,3271.6,3.2078]
[1737039747242,3.2078,3272.4,3272.3,0.61134]
[1737039747444,3.2078,3272.4,3272.3,2.11334]
[1737039747641,4.6055,3272.7,3272.3,1.502]
[1737039747853,8.0703,3272.8,3272.7,0.61127]
[1737039748146,3.2078,3272.8,3272.7,0.61127]
[1737039748342,3.2078,3273.3,3272.7,0.61127]
[1737039748646,3.2078,3273.3,3273.1,0.61119]
[1737039748844,3.2078,3273.3,3273.2,2.12117]
[1737039749040,3.43960316,3274.0,3273.9,0.61104]
[1737039749246,3.43960316,3274.0,3273.9,3.81884]
[1737039750147,3.43960316,3274.0,3273.6,0.6111]
[1737039750446,3.2078,3273.9,3273.7,1.51]
[1737039750640,3.2078,3274.4,3273.8,1.51]
[1737039750845,3.2078,3274.4,3273.9,1.51]
[1737039751446,3.81882,3274.0,3273.9,1.51]
[1737039751637,3.81882,3274.0,3273.9,2.12104]
[1737039751638,3.2078,3274.0,3273.9,2.12104]
[1737039751844,3.2078,3274.5,3274.4,0.61095]
[1737039752039,3.2078,3274.5,3273.9,1.51]
[1737039752342,3.2078,3274.9,3273.9,1.51]
[1737039752538,4.7711,3275.3,3275.2,0.6108]
[1737039752738,3.2078,3275.4,3275.2,0.6108]
[1737039752739,3.2078,3275.4,3275.3,0.61078]
[1737039753148,3.2078,3275.4,3275.2,1.51]
[1737039753149,3.2078,3275.8,3275.7,0.61071]
[1737039753453,3.43960316,3276.0,3275.9,0.61067]
[1737039753751,3.2078,3276.2,3276.1,0.61063]
[1737039753948,3.2078,3276.2,3276.1,2.12063]
[1737039754359,3.43960316,3276.4,3276.1,1.51]
[1737039754550,3.43960316,3276.4,3276.3,0.61059]
[1737039754845,4.05019316,3276.4,3276.1,1.51]
[1737039755148,3.2078,3276.7,3276.1,1.51]
[1737039755646,3.2078,3276.7,3276.6,0.61054]
[1737039755851,3.2078,3277.8,3277.3,0.6104]
[1737039756151,0.6272,3276.7,3276.6,3.81834]
[1737039756446,3.2078,3278.2,3278.0,0.61027]
[1737039756648,0.61024,3278.2,3278.1,1.509]
[1737039756848,3.81802,3278.3,3277.9,1.509]
[1737039757042,3.2078,3278.3,3277.9,1.509]
[1737039757549,3.9591,3278.3,3277.9,1.509]
[1737039757752,5.1792,3278.3,3278.2,0.61024]
[1737039757951,5.1792,3278.3,3277.9,1.509]
[1737039758148,5.1792,3278.3,3278.2,0.61024]
[1737039758349,1.9714,3278.3,3278.2,0.61024]
[1737039758748,1.9714,3278.3,3278.2,5.61024]
[1737039758950,3.2078,3278.8,3278.7,0.61015]
[1737039759153,3.81778,3279.6,3278.9,0.61009]
[1737039759449,3.2078,3279.6,3279.0,1.509]
[1737039759645,0.61003,3279.4,3279.0,1.509]
[1737039759843,3.2078,3279.2,3279.0,1.509]
[1737039760048,3.2078,3279.2,3278.6,1.509]
[1737039760254,3.2078,3278.7,3278.6,1.509]
[1737039761656,3.2865,3278.7,3278.6,1.509]
[1737039763550,3.2865,3278.7,3278.6,1.508]
[1737039763755,3.89665,3278.7,3278.6,1.508]
[1737039763951,3.2865,3278.7,3277.6,3.2078]
[1737039764144,3.2078,3278.3,3277.7,1.508]
[1737039764354,3.2865,3278.7,3278.0,3.2078]
[1737039764653,3.2865,3278.7,3278.6,0.61017]
[1737039764849,3.2865,3278.7,3278.6,1.508]
[1737039765052,3.2865,3278.7,3277.6,3.2078]
[1737039765251,3.2078,3278.3,3278.0,0.61027]
[1737039765646,3.2078,3278.3,3278.2,0.61024]
[1737039766653,3.2865,3278.7,3278.6,0.61017]
[1737039766853,3.2865,3278.7,3278.6,2.11817]
[1737039767959,0.0787,3278.7,3278.6,2.11817]
[1737039768952,1.2198,3279.2,3279.1,0.61007]
[1737039769257,3.2078,3279.9,3279.1,0.61007]
[1737039769457,3.2078,3280.3,3279.7,3.2078]
[1737039769656,3.2078,3280.3,3279.8,1.508]
[1737039770259,3.2078,3280.4,3279.8,1.508]
[1737039770466,0.60986,3280.3,3279.8,1.508]
[1737039770755,4.4271,3280.4,3279.8,1.508]
[1737039770958,3.81773,3279.9,3279.8,1.508]
[1737039771151,3.2078,3279.9,3279.8,1.507]
[1737039771556,3.81772,3279.9,3279.8,1.507]
[1737039771756,3.2078,3279.9,3279.8,1.507]
[1737039773761,1.2193,3280.4,3279.8,1.507]
[1737039774158,1.2193,3280.4,3280.0,3.2078]
[1737039774868,1.2193,3280.4,3280.1,40.8]
[1737039775957,5.03694,3280.4,3279.4,3.2078]
[1737039776264,1.2193,3280.4,3279.5,1.507]
[1737039777650,1.2193,3280.4,3279.8,3.2078]
[1737039778265,1.2193,3280.4,3279.4,3.2078]
[1737039778462,4.4271,3280.4,3279.4,3.2078]
[1737039780359,4.4271,3280.4,3279.8,3.2078]
[1737039780659,1.2193,3280.4,3279.8,3.2078]
[1737039780858,3.2078,3280.3,3279.8,3.2078]
[1737039781466,3.2078,3280.3,3279.4,3.2078]
[1737039781762,3.2078,3279.9,3278.5,5.02874926]
[1737039781967,3.2078,3279.1,3278.0,3.2078]
[1737039782156,3.2078,3278.2,3277.5,3.2078]
[1737039783067,3.2078,3278.6,3277.5,3.2078]
[1737039783459,3.2078,3278.2,3277.5,3.2078]
[1737039783655,3.2078,3278.2,3276.6,9.67]
[1737039783656,3.2078,3277.8,3277.1,3.2078]
[1737039783867,3.2078,3277.8,3276.6,12.5722]
[1737039784063,8.9564,3278.9,3276.6,12.5722]
[1737039784259,3.2078,3278.2,3277.0,3.2078]
[1737039784463,3.2078,3278.7,3278.0,3.2078]
[1737039784862,3.2078,3279.1,3278.4,3.2078]
[1737039785064,3.2078,3279.8,3278.8,3.2078]
[1737039785264,3.2078,3279.8,3279.2,3.2078]
[1737039785666,3.2078,3280.7,3279.6,3.2078]
[1737039786067,3.2078,3280.3,3279.2,3.2078]
[1737039786469,3.2078,3280.7,3279.2,3.2078]
[1737039786763,3.2078,3280.7,3278.6,0.3056]
[1737039786764,3.2078,3280.7,3279.8,3.2078]
[1737039787572,3.2078,3280.7,3279.4,3.2078]
[1737039787867,3.2078,3280.7,3280.0,3.2078]
[1737039788471,3.2078,3280.7,3279.8,3.2078]
[1737039788658,3.2078,3280.7,3279.3,3.2078]
[1737039789061,3.2078,3280.7,3279.7,3.2078]
[1737039790765,3.2078,3280.2,3279.2,1.30583129]
[1737039791068,3.2078,3279.8,3279.1,3.2078]
[1737039791370,3.2078,3279.4,3278.7,1.30583129]
[1737039791567,3.2078,3279.9,3278.7,4.51363129]
[1737039791873,3.2078,3280.0,3279.1,3.2078]
[1737039792171,3.2078,3280.0,3279.5,3.2078]
[1737039792565,3.2078,3280.0,3279.1,3.2078]
[1737039792771,3.2078,3280.6,3279.5,3.2078]
[1737039794766,3.2078,3280.6,3280.0,3.2078]
[1737039795469,3.2078,3281.0,3280.0,3.2078]
[1737039797670,3.2078,3281.0,3280.0,8.2078]
[1737039797977,3.2078,3281.7,3280.0,8.2078]
[1737039798173,3.2078,3281.3,3280.0,8.2078]
[1737039798379,3.2078,3281.7,3280.1,1.33410749]
[1737039798675,3.2078,3281.7,3280.2,1.33410749]
[1737039799076,9.4513,3282.1,3280.0,3.2078]
[1737039799077,3.2078,3281.3,3280.0,3.2078]
[1737039799966,3.2078,3280.9,3280.0,3.2078]
[1737039800371,3.2078,3280.9,3279.7,1.33435529]
[1737039800372,3.2078,3280.9,3279.6,3.45586309]
[1737039800573,9.6383,3280.8,3279.6,3.2078]
[1737039800775,4.4271,3280.4,3279.6,3.2078]
[1737039803072,1.2193,3280.4,3280.1,3.2078]
[1737039803277,1.2193,3280.4,3279.7,3.2078]
[1737039804077,1.2193,3280.4,3280.1,3.2078]
[1737039804481,1.2193,3280.4,3280.1,8.2078]
[1737039804684,1.2193,3280.4,3280.1,3.2078]
[1737039805379,1.2193,3280.4,3280.1,8.2078]
[1737039805578,1.2193,3280.4,3280.1,3.2078]
[1737039806279,1.2193,3280.4,3280.1,8.2078]
[1737039806992,1.2193,3280.4,3280.1,3.2078]
[1737039808088,1.2193,3280.4,3280.0,0.24896127]
[1737039808289,3.2078,3280.1,3280.0,0.24896127]
[1737039808590,3.2078,3280.1,3278.9,3.2078]
[1737039808780,3.2078,3279.6,3278.7,1.33440874]
[1737039808991,3.2078,3278.9,3278.7,1.33440874]
[1737039809288,9.7953,3280.0,3278.5,9.40254501]
[1737039809289,3.2078,3279.6,3278.5,9.40254501]
[1737039809586,4.4274,3279.6,3278.6,3.2078]
[1737039809990,1.2196,3279.6,3279.0,3.2078]
[1737039810286,1.2196,3279.6,3279.5,3.2078]
[1737039810586,3.40689831,3280.3,3279.5,3.2078]
[1737039810792,3.40689831,3280.3,3280.2,3.2078]
[1737039810980,0.795,3280.3,3280.2,3.2078]
[1737039811185,3.2078,3280.9,3280.2,3.2078]
[1737039811589,4.4269,3280.9,3280.2,3.2078]
[1737039811982,1.2191,3280.9,3280.6,3.2078]
[1737039813387,1.2191,3280.9,3280.1,3.2078]
[1737039813592,1.2191,3280.9,3279.4,1.33440874]
[1737039813593,3.2078,3280.4,3279.7,3.2078]
[1737039814097,4.6473,3280.3,3279.4,7.03931908]
[1737039814297,3.2078,3280.0,3279.4,7.03931908]
[1737039814795,9.5202,3280.3,3279.5,3.2078]
[1737039815186,9.5202,3280.3,3279.9,3.2078]
[1737039815590,4.54253108,3280.7,3279.9,3.2078]
[1737039815792,4.54253108,3280.7,3280.3,3.2078]
[1737039816392,1.2191,3280.9,3280.3,3.2078]
[1737039816593,1.2191,3280.9,3280.7,3.2078]
[1737039817990,1.2191,3280.9,3280.7,8.2078]
[1737039818493,1.2191,3280.9,3280.7,3.2078]
[1737039818890,1.2191,3280.9,3280.7,8.2078]
[1737039819087,1.2191,3280.9,3280.7,3.2078]
[1737039821000,4.4269,3280.9,3280.0,4.5329]
[1737039821192,3.2078,3280.4,3279.7,7.03931908]
[1737039821398,3.2078,3279.9,3279.7,7.03931908]
[1737039821695,3.2078,3279.9,3278.7,1.33440874]
[1737039821696,3.2078,3279.9,3279.0,11.7531812]
[1737039821900,1.2191,3280.9,3279.3,9.53568852]
[1737039822098,1.2191,3280.9,3279.0,11.7531812]
[1737039822099,3.2078,3279.4,3279.0,11.7531812]
[1737039822490,3.2078,3279.4,3277.3,3.5134]
[1737039822695,3.2078,3278.5,3277.3,3.5134]
[1737039823295,3.2078,3278.5,3276.9,3.2078]
[1737039823490,3.2078,3277.7,3277.0,0.3056]
[1737039823693,3.2078,3278.0,3277.3,3.2078]
[1737039823901,3.2078,3278.4,3277.3,3.2078]
[1737039824703,3.2078,3278.4,3277.7,3.2078]
[1737039824997,4.54253108,3279.0,3277.7,3.2078]
[1737039824998,3.2078,3278.8,3277.7,3.2078]
[1737039825594,3.2078,3278.8,3276.6,5.1548]
[1737039825595,3.2078,3278.8,3277.8,3.2078]
[1737039825797,3.2078,3277.9,3276.7,3.2078]
[1737039825996,3.2078,3278.3,3277.1,3.2078]
[1737039826198,4.6176,3278.7,3277.5,3.2078]
[1737039826399,3.2078,3278.4,3277.5,3.2078]
[1737039827707,2.726712,3278.6,3278.3,3.2078]
[1737039827908,2.36335862,3279.5,3278.3,3.2078]
[1737039828105,2.36335862,3279.5,3279.0,3.2078]
[1737039828496,2.36335862,3279.5,3279.4,3.2078]
[1737039829005,2.36335862,3279.5,3279.4,8.2078]
[1737039829398,3.2078,3280.4,3279.4,3.2078]
[1737039829805,3.2078,3280.0,3279.0,3.2078]
[1737039830408,3.2078,3279.7,3279.0,3.2078]
[1737039830906,3.2078,3280.0,3279.0,3.2078]
[1737039831105,3.2078,3280.4,3279.6,3.2078]
[1737039831611,12.6314,3280.8,3279.6,3.2078]
[1737039831808,13.8506,3280.8,3279.6,3.2078]
[1737039832710,3.2078,3280.4,3279.2,3.2078]
[1737039832912,10.6428,3280.8,3279.2,3.2078]
[1737039832913,3.2078,3280.0,3279.2,3.2078]
[1737039833413,3.2078,3280.0,3278.8,3.2078]
[1737039833613,3.2078,3279.6,3278.8,3.2078]
[1737039834119,3.2078,3280.4,3279.2,3.2078]
[1737039834307,3.2078,3280.4,3279.7,3.2078]
[1737039835505,3.2078,3280.4,3279.3,3.2078]
[1737039835906,3.2078,3279.9,3278.8,3.2078]